Workbook

Sheet Cockpit
A1: mein Ausbildungsbudget
F2: 1
A3: Einnahmen | B3: Budget | C3: Effektiv | D3: Differenz | F3: bitte auswählen
A5: Lohn | B5: 630 | C5: 630 | D5: =B5-C5 -> 0
A6: Nebenerwerb | B6: 80 | C6: =SUM(Nebenerwerb!D:D) -> 30 | D6: =B6-C6 -> 50
A8: Total Einnahmen | B8: =SUM(B5:B6) -> 710 | C8: =SUM(C5:C6) -> 660 | D8: 50
A11: Ausgaben
A13: Abgabe zuhause | B13: 100 | C13: =B13 -> 100 | D13: 0
A14: Essen auswärts | B14: 200 | C14: =SUM(Essen!D:D) -> 71 | D14: 129
A15: Bekleidung/Schuhe | B15: 120 | C15: =SUM(Bekleidung!D:D) -> 148 | D15: -28
A16: Fahrzeug, Fahrten | B16: 90 | C16: =SUM(Fahrten!D:D) -> 83 | D16: 7
A17: Versicherungen | B17: 20 | C17: =SUM(Versicherungen!D:D) -> 30 | D17: -10
A18: Berufsschule | B18: 10 | C18: =SUM(Berufsschule!D:D) -> 17.5 | D18: -7.5
A19: Freizeit | B19: 120 | C19: =SUM(Freizeit!D:D) -> 83 | D19: 37
A20: Sparen | B20: 50 | C20: =SUM(Sparen!D:D) -> 50 | D20: 0
A23: Total Ausgaben | B23: =SUM(B13:B20) -> 710 | C23: =SUM(C13:C20) -> 582.5 | D23: 127.5
A25: =IF(C23<B23,"gut gemacht, du hast gespart!","pass auf, du solltest weniger ausgeben!") -> gut gemacht, du hast gespart!

Sheet Essen
A1: Datum | B1: Positionen (Essen) | C1: Budget | D1: aus | E1: Saldo
A2: 2022-07-01 | B2: Übertrag | C2: =Cockpit!B14 -> 200 | E2: =C2 -> 200
B3: Mittagessen Krone | D3: 15 | E3: =IF(E2="","",E2-D3) -> 185
A4: 2022-07-03 | B4: eingekauft | D4: 7 | E4: =IF(E3="","",E3-D4) -> 178
A5: 2022-07-04 | B5: Mittagessen Krone | D5: 15 | E5: =IF(E4="","",E4-D5) -> 163
A6: 2022-07-05 | B6: Mittagessen Berufsschule | D6: 12 | E6: =IF(E5="","",E5-D6) -> 151
A7: 2022-07-06 | B7: Mittagessen | C7: Sonne | D7: 22 | E7: =IF(E6="","",E6-D7) -> 129

Sheet Bekleidung
A1: Datum | B1: Positionen (Bekleidung) | C1: Budget | D1: aus | E1: Saldo
A2: 2022-07-01 | B2: Übertrag | C2: =Cockpit!B15 -> 120 | E2: =C2 -> 120
E3: =IF(E2="","",E2-D3) -> 120
A4: 2022-07-03 | B4: Motorradjacke | D4: 148 | E4: =IF(E3="","",E3-D4) -> -28

Sheet Fahrten
A1: Datum | B1: Positionen (Fahrten) | C1: Budget | D1: aus | E1: Saldo
A2: 2022-07-01 | B2: Übertrag | C2: =Cockpit!B16 -> 90 | E2: =C2 -> 90
A3: 2022-07-28 | B3: Zustupf des Vaters | D3: -200 | E3: =IF(E2="","",E2-D3) -> 290
A4: 2022-07-06 | B4: Töffreparatur | D4: 283 | E4: =IF(E3="","",E3-D4) -> 7

Sheet Versicherungen
A1: Datum | B1: Positionen (Versicherungen) | C1: Budget | D1: aus | E1: Saldo
A2: 2022-07-01 | B2: Übertrag | C2: =Cockpit!B17 -> 20 | E2: =C2 -> 20
E3: =IF(E2="","",E2-D3) -> 20
A4: 2022-07-12 | B4: Anteil Krankenkasse | D4: 30 | E4: =IF(E3="","",E3-D4) -> -10

Sheet Berufsschule
A1: Datum | B1: Positionen (Berufsschule) | C1: Budget | D1: aus | E1: Saldo
A2: 2022-07-01 | B2: Übertrag | C2: =Cockpit!B18 -> 10 | E2: =C2 -> 10
E3: =IF(E2="","",E2-D3) -> 10
A4: 2022-07-18 | B4: Exkurion Schule | D4: 17.5 | E4: =IF(E3="","",E3-D4) -> -7.5

Sheet Freizeit
A1: Datum | B1: Positionen (Freizeit) | C1: Budget | D1: aus | E1: Saldo
A2: 2022-07-01 | B2: Übertrag | C2: =Cockpit!B19 -> 120 | E2: =C2 -> 120
E3: =IF(E2="","",E2-D3) -> 120
A4: 2022-07-09 | B4: Kino und Ausgang | D4: 58 | E4: =IF(E3="","",E3-D4) -> 62
A5: 2022-07-12 | B5: Prepay-Card | D5: 25 | E5: =IF(E4="","",E4-D5) -> 37

Sheet Sparen
A1: Datum | B1: Positionen (Sparen) | C1: Budget | D1: aus | E1: Saldo
A2: 2022-07-01 | B2: Übertrag | C2: =Cockpit!B20 -> 50 | E2: =C2 -> 50
E3: =IF(E2="","",E2-D3) -> 50
B4: Einlage SK | D4: 50 | E4: =IF(E3="","",E3-D4) -> 0

Sheet Nebenerwerb
A1: Datum | B1: Positionen (Nebenerwerb) | C1: Budget | D1: ein | E1: Saldo
A2: 2022-07-01 | B2: Übertrag | C2: =Cockpit!B6 -> 80 | D2: 0 | E2: =D2 -> 0
A3: 2022-07-13 | B3: Rasenmähen (Nachbar) | D3: 30 | E3: =IF(E2="","",E2+D3) -> 30

Sheet Diagramm

Sheet Werteliste (hidden)
A1: wohin?
A2: Essen
A3: Bekleidung
A4: Fahrten
A5: Versicherungen
A6: Berufsschule
A7: Freizeit
A8: Sparen
A9: Nebenerwerb

Sheet Archiv
A1: 2022-07-01
